bitfinex/quotes_SOLUSD_20220311
["timestamp","ask_amount","ask_price","bid_price","bid_amount"]
[1647040596706,14.79967223,81.118,81.07,24.6624]
[1647040599610,3.04447957,81.144,81.07,51.69234651]
[1647040599810,23.9973,81.159,81.09,18.4924]
[1647040600111,23.9973,81.159,81.091,29.3068]
[1647040600510,123.1,81.157,81.092,40.60281317]
[1647040600711,123.1,81.157,81.093,6.163]
[1647040600914,123.1,81.157,81.092,6.163]
[1647040602114,123.1,81.149,81.092,6.163]
[1647040602713,123.1,81.149,81.091,23.1438]
[1647040606318,123.1,81.149,81.092,6.163]
[1647040609621,123.1,81.139,81.092,6.163]
[1647040609822,123.1,81.139,81.091,23.1438]
[1647040610029,123.1,81.139,81.073,6.163]
[1647040610223,123.1,81.137,81.072,23.8751]
[1647040610729,123.1,81.135,81.072,23.8751]
[1647040611126,123.1,81.129,81.072,23.8751]
[1647040611324,123.1,81.127,81.072,23.8751]
[1647040612126,123.1,81.119,81.072,23.8751]
[1647040613228,123.1,81.127,81.072,23.8751]
[1647040613826,123.1,81.127,81.073,6.165]
[1647040614231,123.1,81.127,81.074,24.2853]
[1647040616858,123.1,81.119,81.074,24.2853]
[1647040618361,123.1,81.109,81.072,23.8751]
[1647040618662,123.1,81.109,81.043,24.4548]
[1647040618860,128.24,81.109,81.043,24.4548]
[1647040619462,5.14,81.109,81.044,55.52871641]
[1647040619863,123.1,81.099,81.043,24.4548]
[1647040620762,126.14447957,81.099,81.043,24.4548]
[1647040620960,123.1,81.097,81.043,24.4548]
[1647040621965,141.6104,81.09,81.043,24.4548]
[1647040622261,146.3204,81.09,81.043,24.4548]
[1647040625261,141.6104,81.09,81.043,24.4548]
[1647040634069,123.1,81.089,81.043,24.4548]
[1647040635174,123.1,81.096,81.043,24.4548]
[1647040637574,28.8546,81.097,81.043,24.4548]
[1647040637575,123.1,81.089,81.043,24.4548]
[1647040638779,123.1,81.079,81.022,24.6299]
[1647040638977,128.98,81.079,81.023,22.8602]
[1647040639778,141.6146,81.07,81.023,22.8602]
[1647040639981,16.54295497,81.069,81.023,22.8602]
[1647040644400,16.54295497,81.069,81.023,29.0292]
[1647040646598,16.54295497,81.069,81.023,22.8602]
[1647040646802,123.1,81.068,81.023,22.8602]
[1647040647103,150.30516391,81.068,80.998,6.168]
[1647040647400,123.1,81.066,80.999,23.9811]
[1647040647600,124.77287899,81.066,81.0,6.17]
[1647040647799,123.1,81.064,81.0,6.17]
[1647040648299,123.1,81.057,81.0,6.17]
[1647040648500,123.1,81.045,80.989,6.17]
[1647040648702,123.1,81.045,80.977,6.17]
[1647040648902,123.1,81.043,80.973,6.172]
[1647040649300,123.1,81.041,80.973,6.172]
[1647040649701,123.1,81.039,80.973,6.172]
[1647040649901,130.19,81.039,80.973,6.172]
[1647040650112,123.1,81.029,80.973,6.172]
[1647040650515,3.04447957,81.028,80.973,6.172]
[1647040651313,123.1,81.026,80.973,6.172]
[1647040651510,123.1,81.026,80.972,23.9835]
[1647040651712,3.04447957,81.025,80.972,23.9835]
[1647040652111,123.1,81.019,80.972,23.9835]
[1647040652312,129.93,81.019,80.972,23.9835]
[1647040653813,123.1,81.009,80.972,23.9835]
[1647040654012,16.54295497,81.008,80.972,23.4835]
[1647040655215,16.54295497,81.008,80.973,6.173]
[1647040656618,24.7857,81.026,80.973,6.173]
[1647040657818,47.01613443,81.025,80.973,6.173]
[1647040658820,3.04447957,81.054,80.973,6.173]
[1647040659023,12.89141126,81.065,80.973,6.173]
[1647040659024,12.89141126,81.065,80.973,35.08792057]
[1647040659222,3.04447957,81.074,80.974,24.87194651]
[1647040659420,3.04447957,81.074,80.975,5.671]
[1647040659622,2.04447957,81.074,80.98,18.5195]
[1647040659923,47.57857037,81.073,80.981,6.17]
[1647040660322,3.04447957,81.072,80.981,6.17]
[1647040660721,27.20516391,81.071,80.982,47.2763]
[1647040660924,18.5155,81.07,80.99,18.5155]
[1647040661121,18.5155,81.07,80.992,32.57878841]
[1647040661322,27.20516391,81.069,80.992,32.57878841]
[1647040662123,27.20516391,81.069,80.993,6.17]
[1647040662823,27.20516391,81.069,81.0,18.515]
[1647040663025,27.20516391,81.069,81.001,6.17]
[1647040665724,3.04447957,81.072,81.001,6.17]
[1647040665926,47.57857037,81.073,81.01,18.5127]
[1647040666129,47.57857037,81.073,81.011,6.168]
[1647040666728,123.1,81.069,80.992,32.57878841]
[1647040666929,1.053,81.068,80.992,32.57878841]
[1647040667130,123.1,81.069,80.982,47.2763]
[1647040667330,123.1,81.069,80.983,6.17]
[1647040667529,123.1,81.069,80.983,8.96022998]
[1647040667731,123.1,81.069,80.984,2.79022998]
[1647040667930,123.1,81.069,80.985,6.17]
[1647040668130,123.1,81.069,81.0,18.5146]
[1647040668330,123.1,81.069,81.001,6.17]
[1647040669430,150.30516391,81.069,81.001,6.17]
[1647040669832,123.1,81.059,81.001,6.17]
[1647040673239,18.5174,81.06,81.001,6.17]
[1647040673439,47.57857037,81.073,81.001,6.17]
[1647040675242,47.57857037,81.073,81.011,37.15407606]
[1647040677070,47.57857037,81.073,81.02,18.5104]
[1647040678675,123.1,81.072,81.02,18.5104]
[1647040678874,123.1,81.072,81.01,18.5124]
[1647040679073,128.95,81.072,81.011,24.164]
[1647040679276,5.85,81.072,81.011,24.164]
[1647040679880,128.95,81.072,81.011,24.164]
[1647040680881,123.1,81.069,81.011,24.164]
[1647040681880,141.6172,81.06,81.011,24.164]
[1647040682679,123.1,81.06,81.011,24.164]
[1647040683883,152.00235724,81.059,80.992,24.9179]
[1647040684082,123.1,81.055,80.992,24.9179]
[1647040684288,1.67287899,81.048,80.992,24.9179]
[1647040684487,1.075,81.047,80.992,24.9179]
[1647040684684,137.6893992,81.046,80.992,24.9179]
[1647040684884,1.083,81.045,80.992,24.9179]
[1647040685089,123.1,81.039,80.992,24.9179]
[1647040685285,124.191,81.039,80.978,24.2892]
[1647040685486,123.1,81.037,80.978,24.2892]
[1647040685785,1.099,81.036,80.978,24.2892]
[1647040685984,123.1,81.035,80.978,24.2892]
[1647040686188,1.107,81.034,80.978,24.2892]
[1647040686387,4.15147957,81.034,80.978,24.2892]
[1647040686788,3.04447957,81.033,80.978,24.2892]
[1647040687186,123.1,81.029,80.978,24.2892]
[1647040687990,123.1,81.025,80.951,22.7617]
[1647040688189,196.97,81.019,80.934,23.1595]
[1647040688390,0.9977,81.018,80.934,23.1595]
[1647040688589,4.04217957,81.018,80.934,23.1595]
[1647040688790,196.97,81.017,80.934,23.1595]
[1647040688987,123.1,81.015,80.938,65.96108488]
[1647040689188,123.1,80.999,80.938,65.96108488]
[1647040689388,123.1,80.997,80.938,65.96108488]
[1647040690194,123.1,80.997,80.934,23.1595]
[1647040691395,123.1,80.997,80.939,47.05555653]
[1647040692598,14.5893992,80.998,80.954,49.60649287]
[1647040694300,3.04447957,81.014,80.954,49.60649287]
[1647040694502,30.80902391,81.031,80.954,49.60649287]
[1647040694702,1.052,81.038,80.955,23.3065]
[1647040694905,124.152,81.038,80.956,23.8968]
[1647040695319,123.1,81.036,80.956,23.8968]
[1647040695720,123.1,81.034,80.956,23.8968]
[1647040696121,123.1,81.029,80.96,18.5236]
[1647040696526,123.1,81.027,80.96,18.5236]
[1647040696922,1.052,81.026,80.96,18.5236]
[1647040698125,123.1,81.022,80.96,18.5236]
[1647040698328,1.052,81.021,80.96,18.5236]
[1647040699430,9.03842433,81.023,80.96,18.5236]
[1647040700232,9.03842433,81.023,80.961,6.173]
[1647040700934,9.03842433,81.023,80.961,5.673]
[1647040702134,18.5264,81.02,80.961,5.673]
[1647040702433,18.5264,81.02,80.957,6.173]
[1647040706840,18.5264,81.02,80.96,18.5239]
[1647040707040,18.5264,81.02,80.961,6.173]
[1647040709744,123.1,81.019,80.961,6.173]
[1647040710043,18.5283,81.01,80.957,6.173]
[1647040710843,28.84034525,81.009,80.958,53.93420179]
[1647040712244,28.84034525,81.009,80.957,6.173]
[1647040717775,124.65,81.008,80.957,6.173]
[1647040717972,1.67287899,81.006,80.956,23.8968]
[1647040718175,1.549,81.005,80.956,23.8968]
[1647040718372,123.1,80.999,80.956,23.8968]
[1647040719375,1.549,81.005,80.956,23.8968]
[1647040719676,9.03842433,80.989,80.956,23.8968]
[1647040722286,123.1,80.988,80.909,0.0443158]
[1647040722490,147.0529,80.988,80.91,46.7759]
[1647040723186,18.535,80.98,80.92,18.5331]
[1647040723588,18.535,80.98,80.921,22.9836]
[1647040724288,123.1,80.979,80.921,22.9836]
[1647040729191,129.44,80.979,80.921,22.9836]
[1647040729893,18.5379,80.97,80.921,22.9836]
[1647040730499,18.5379,80.97,80.922,6.176]
[1647040730895,27.84034525,80.969,80.922,6.176]
[1647040731097,123.1,80.968,80.922,6.176]
[1647040731494,123.1,80.968,80.911,6.176]
[1647040732495,123.1,80.959,80.911,6.176]
[1647040732696,130.64,80.959,80.911,5.176]
[1647040733796,7.54,80.959,80.911,5.176]
[1647040733997,18.5398,80.96,80.911,5.176]
[1647040736604,18.5398,80.96,80.91,23.7923]
[1647040739606,18.5398,80.96,80.911,6.176]
[1647040741833,18.5398,80.96,80.91,23.7923]
[1647040745536,123.1,80.959,80.91,23.7923]
[1647040745740,18.5419,80.95,80.91,23.7923]
[1647040746539,9.03842433,80.949,80.91,23.7923]
[1647040749341,9.03842433,80.949,80.911,6.178]
[1647040750544,18.5442,80.94,80.91,23.7923]
[1647040750947,15.82842433,80.949,80.91,23.7923]
[1647040751142,15.82842433,80.949,80.909,0.0443158]
[1647040751945,24.2247,80.958,80.91,6.178]
[1647040752152,1.67287899,80.972,80.91,6.178]
[1647040752345,26.0262,80.978,80.91,6.178]
[1647040752543,26.0262,80.978,80.91,24.7129]
[1647040752944,31.18832757,80.977,80.911,56.80111655]
[1647040753144,2.553,80.976,80.912,6.176]
[1647040753745,27.94399724,80.975,80.912,6.176]
[1647040756950,2.553,80.974,80.912,6.176]
[1647040757352,151.04243724,80.973,80.912,6.176]
[1647040757652,18.5379,80.97,80.912,6.176]
[1647040758050,27.94243724,80.969,80.912,6.176]
[1647040758452,52.61043724,80.969,80.912,6.176]
[1647040759955,123.1,80.968,80.912,6.176]
[1647040760152,52.61043724,80.969,80.912,6.176]
[1647040760354,123.1,80.968,80.912,6.176]
[1647040760552,2.553,80.967,80.912,6.176]
[1647040761956,2.553,80.968,80.912,6.176]
[1647040762355,52.61043724,80.969,80.912,6.176]
[1647040762356,24.668,80.969,80.912,6.176]
[1647040762558,1.67287899,80.975,80.912,6.176]
[1647040762758,1.67287899,80.985,80.913,125.89036633]
[1647040762957,6.42253177,80.986,80.913,180.27014486]
[1647040763155,1.67287899,81.002,80.914,2.79036633]
[1647040763356,1.67287899,81.006,80.915,123.1]
[1647040763555,2.555,81.005,80.93,14.89]
[1647040763860,28.30462473,81.004,80.931,94.19870871]
[1647040765256,28.30462473,81.004,80.95,18.5256]
[1647040765457,28.30462473,81.004,80.945,65.9563021]
[1647040765660,28.30462473,81.004,80.946,123.1]
[1647040766061,28.30462473,81.004,80.948,123.1]
[1647040766279,28.30462473,81.004,80.95,141.6263]
[1647040766480,28.30462473,81.004,80.95,18.5263]
[1647040766683,28.30462473,81.004,80.95,141.6263]
[1647040768984,47.4703,81.027,80.95,141.6263]
[1647040769984,31.21483919,81.026,80.95,141.6263]
[1647040770387,31.21483919,81.026,80.95,33.4163]
[1647040770585,31.21483919,81.026,80.95,156.5163]
[1647040770984,31.21483919,81.026,80.951,23.1572]
[1647040771185,31.21483919,81.026,80.96,18.5224]
[1647040771390,31.21483919,81.026,80.962,55.5849283]
[1647040772287,31.21483919,81.026,80.97,18.5215]
[1647040772487,31.21483919,81.026,80.971,23.1572]
[1647040773288,23.70271157,81.048,80.971,23.1572]
[1647040773289,1.67287899,81.042,80.98,141.619]
[1647040773490,2.588,81.051,80.981,22.5593]
[1647040773788,1.67287899,81.052,80.981,22.5593]
[1647040773989,1.67287899,81.053,80.981,22.5593]
[1647040774391,28.6494103,81.052,81.001,53.88567875]
[1647040776791,28.6494103,81.052,80.991,22.5593]
[1647040778991,123.1,81.051,80.991,22.5593]
[1647040779192,123.1,81.049,80.991,22.5593]
[1647040779392,18.5188,81.05,80.991,22.5593]
[1647040779992,146.80271157,81.049,80.991,22.5593]
[1647040780196,123.1,81.039,80.952,73.9714]
[1647040780397,61.7619,81.03,80.953,24.9046]
[1647040780693,123.1,81.029,80.953,24.9046]
[1647040780897,146.80271157,81.029,80.953,24.9046]
[1647040781093,123.1,81.027,80.957,55.18868096]
[1647040781493,18.5286,81.02,80.957,55.18868096]
[1647040785299,8.22935928,81.028,80.957,55.18868096]
[1647040785899,8.22935928,81.028,80.973,24.0722]
[1647040791303,1.67287899,81.026,80.973,24.0722]
[1647040792104,2.553,81.025,80.973,24.0722]
[1647040792305,1.67287899,81.022,80.973,24.0722]
[1647040792806,18.5255,81.02,80.973,24.0722]
[1647040793306,1.67287899,81.018,80.953,6.173]
[1647040793504,1.67287899,81.018,80.954,24.9398]
[1647040793705,1.67287899,81.017,80.955,6.173]
[1647040793906,1.67287899,81.017,80.956,49.06842288]
[1647040794109,1.67287899,81.017,80.957,6.173]
[1647040794308,123.1,81.009,80.955,6.173]
[1647040794508,18.5277,81.01,80.954,24.9398]
[1647040795007,28.6494103,81.009,80.954,24.9398]
[1647040795308,52.0061103,81.009,80.954,24.9398]
[1647040796307,123.1,81.008,80.954,24.9398]
[1647040796509,18.5301,81.0,80.954,24.9398]
[1647040797109,20.20297899,81.0,80.954,24.9398]
[1647040797310,18.5301,81.0,80.954,24.9398]
[1647040801016,2.553,80.999,80.954,24.9398]
[1647040801413,2.553,80.999,80.949,6.174]
[1647040801414,18.5329,80.99,80.949,6.174]
[1647040802213,1.67287899,81.005,80.949,6.174]
[1647040802416,8.22935928,80.995,80.95,55.8307068]
[1647040802814,8.22935928,80.995,80.949,6.174]
[1647040803015,8.22935928,80.995,80.93,23.4065]
[1647040803816,8.22935928,80.995,80.931,52.08085277]
[1647040805023,8.22935928,80.995,80.932,23.9817]
[1647040806630,1.67287899,81.003,80.941,123.1]
[1647040806827,1.67287899,81.008,80.943,123.1]
[1647040807029,1.67287899,81.014,80.943,123.1]
[1647040807426,1.67287899,81.012,80.943,123.1]
[1647040807645,1.67287899,81.012,80.942,26.48016633]
[1647040807646,29.03560527,81.011,80.945,123.1]
[1647040807847,26.51060527,81.011,80.945,123.1]
[1647040808249,26.51060527,81.011,80.95,141.6213]
[1647040812152,1.67287899,81.018,80.95,141.6213]
[1647040812354,1.67287899,81.027,80.952,123.1]
[1647040812552,1.67287899,81.027,80.971,123.1]
[1647040812752,1.67287899,81.027,80.973,123.1]
[1647040812954,1.67287899,81.029,80.973,123.1]
[1647040813153,34.25453561,81.028,80.975,123.1]
[1647040813353,34.25453561,81.028,80.974,51.69678787]
[1647040813958,1.67287899,81.026,80.974,51.69678787]
[1647040814254,1.67287899,81.025,80.974,51.69678787]
[1647040814455,1.67287899,81.022,80.974,51.69678787]
[1647040816559,24.6507,81.027,80.974,51.69678787]
[1647040817661,1.67287899,81.026,80.974,51.69678787]
[1647040817859,1.67287899,81.024,80.974,51.69678787]
[1647040818262,26.32357899,81.027,80.974,51.69678787]
[1647040818861,24.6507,81.027,80.974,51.69678787]
[1647040819469,1.67287899,81.025,80.974,51.69678787]
[1647040819667,1.67287899,81.024,80.972,24.6362]
[1647040819869,24.6507,81.027,80.972,24.6362]
[1647040819870,1.67287899,81.023,80.972,24.6362]
[1647040820067,1.67287899,81.022,80.972,24.6362]
[1647040820767,1.67287899,81.022,80.973,50.08993858]
[1647040820965,1.67287899,81.023,80.973,50.08993858]
[1647040822269,1.67287899,81.028,80.974,123.1]
[1647040822469,1.67287899,81.028,80.973,50.08993858]
[1647040822668,1.67287899,81.031,80.973,50.08993858]
[1647040823174,29.16562619,81.031,80.973,50.08993858]
[1647040823668,29.16562619,81.031,80.974,123.1]
[1647040824072,29.16562619,81.031,80.973,50.08993858]
[1647040824270,1.67287899,81.029,80.973,50.08993858]
[1647040824875,1.67287899,81.028,80.973,50.08993858]
[1647040825574,23.1262,81.027,80.973,50.08993858]
[1647040825772,23.1262,81.027,80.972,24.6362]
[1647040826398,1.67287899,81.024,80.972,24.6362]
[1647040826896,1.67287899,81.024,80.973,49.6196042]
[1647040827497,1.67287899,81.023,80.973,49.6196042]
[1647040828500,1.67287899,81.022,80.973,49.6196042]
[1647040828900,1.67287899,81.021,80.973,49.6196042]
[1647040829701,1.67287899,81.02,80.973,49.6196042]
[1647040832103,1.67287899,81.021,80.973,49.6196042]
[1647040832705,1.67287899,81.02,80.973,49.6196042]
[1647040834506,7.71314339,81.017,80.973,49.6196042]
[1647040835503,1.67287899,81.016,80.973,49.6196042]
[1647040836005,1.67287899,81.016,80.972,24.6362]
[1647040836404,1.67287899,81.015,80.972,24.6362]
[1647040837005,1.67287899,81.016,80.972,24.6362]
[1647040837404,1.67287899,81.015,80.972,24.6362]
[1647040838206,1.67287899,81.014,80.972,24.6362]
[1647040839010,1.67287899,81.013,80.972,24.6362]
[1647040839210,1.67287899,81.012,80.972,24.6362]
[1647040841012,1.67287899,81.013,80.972,24.6362]
[1647040841415,1.67287899,81.012,80.972,24.6362]
[1647040842516,1.67287899,81.013,80.972,24.6362]
[1647040843115,1.67287899,81.012,80.972,24.6362]
[1647040847923,1.67287899,81.012,80.973,6.173]
[1647040848325,1.67287899,81.011,80.973,6.173]
[1647040848527,1.67287899,81.012,80.973,6.173]
[1647040849526,1.67287899,81.011,80.973,6.173]
[1647040850128,1.67287899,81.012,80.973,6.173]
[1647040850927,1.67287899,81.011,80.973,6.173]
[1647040852952,1.67287899,81.011,80.972,24.6362]
[1647040853549,1.67287899,81.01,80.972,24.6362]
[1647040854048,1.67287899,81.009,80.972,24.6362]
[1647040854248,1.67287899,81.01,80.972,24.6362]
[1647040855050,1.67287899,81.009,80.972,24.6362]
[1647040856852,1.67287899,81.009,80.973,6.173]
[1647040858152,1.67287899,81.01,80.973,6.173]
[1647040863868,1.67287899,81.009,80.973,6.173]
[1647040864260,1.67287899,81.008,80.973,6.173]
[1647040867665,1.67287899,81.007,80.973,6.173]
[1647040868271,1.67287899,81.008,80.973,6.173]
[1647040868466,1.67287899,81.007,80.973,6.173]
[1647040868867,1.67287899,81.008,80.973,6.173]
[1647040869266,1.67287899,81.007,80.973,6.173]
[1647040870068,1.67287899,81.008,80.973,6.173]
[1647040870270,1.67287899,81.007,80.973,6.173]
[1647040873374,1.67287899,81.008,80.973,6.173]
[1647040874472,1.67287899,81.008,80.972,24.6362]
[1647040878276,1.67287899,81.008,80.973,6.173]
[1647040880109,1.67287899,81.004,80.973,6.173]
[1647040880302,1.67287899,81.004,80.972,24.6362]
[1647040880303,8.68287899,81.004,80.972,24.6362]
[1647040880803,7.01,81.004,80.952,6.173]
[1647040881009,22.9188,81.003,80.953,23.4467]
[1647040881202,1.67287899,81.001,80.954,6.174]
[1647040881406,1.67287899,81.002,80.954,6.174]
[1647040882103,1.67287899,80.998,80.954,6.174]
[1647040882702,1.67287899,80.999,80.954,6.174]
[1647040883002,1.67287899,80.988,80.899,25.77657088]
[1647040883202,1.67287899,80.981,80.908,23.4467]
[1647040883402,1.67287899,80.977,80.908,23.4467]
[1647040883604,1.67287899,80.978,80.91,6.177]
[1647040884003,29.16562619,80.977,80.911,53.3786154]
[1647040884203,29.16562619,80.977,80.912,6.176]
[1647040884604,24.1392,80.976,80.912,6.176]
[1647040890512,18.5368,80.97,80.912,6.176]
[1647040891213,24.1392,80.976,80.912,6.176]
[1647040893718,125.645,80.975,80.912,6.176]
[1647040894317,2.545,80.975,80.912,6.176]
[1647040894516,18.5369,80.97,80.912,6.176]
[1647040895115,123.1,80.969,80.912,6.176]
[1647040895315,2.543,80.968,80.884,6.176]
[1647040895516,123.1,80.966,80.885,24.6218]
[1647040895718,123.1,80.959,80.91,6.176]
[1647040895917,123.1,80.957,80.886,6.176]
[1647040896318,27.17691157,80.956,80.886,6.176]
[1647040896516,123.1,80.955,80.886,6.176]
[1647040896815,149.6823,80.954,80.886,6.176]
[1647040897216,123.1,80.947,80.886,6.176]
[1647040897417,129.04,80.947,80.886,6.176]
[1647040898220,123.1,80.939,80.886,6.176]
[1647040898517,123.1,80.939,80.872,6.178]
[1647040898518,2.521,80.938,80.872,6.178]
[1647040898717,2.521,80.938,80.862,19.97069612]
[1647040898920,123.1,80.936,80.862,19.97069612]
[1647040899117,2.519,80.935,80.862,19.97069612]
[1647040899319,123.1,80.929,80.83,18.5521]
[1647040899617,123.1,80.927,80.835,47.70483327]
[1647040899819,123.1,80.925,80.835,46.70483327]
[1647040900019,123.1,80.921,80.835,46.70483327]
[1647040900219,123.1,80.919,80.836,6.182]
[1647040900420,123.1,80.917,80.835,6.182]
[1647040900620,123.1,80.915,80.835,6.182]
[1647040900821,18.5548,80.9,80.835,6.182]
[1647040901020,24.1248,80.9,80.835,6.182]
[1647040901221,7.71314339,80.899,80.836,59.01093417]
[1647040901426,7.71314339,80.899,80.837,6.182]
[1647040902624,7.71314339,80.899,80.836,59.01093417]
[1647040902825,6.71314339,80.899,80.836,59.01093417]
[1647040903727,6.71314339,80.899,80.834,48.8433]
[1647040904426,18.5554,80.89,80.835,6.183]
[1647040907831,18.5554,80.89,80.835,5.683]
[1647040909633,123.1,80.889,80.835,5.683]
[1647040909834,18.5576,80.88,80.835,5.683]
[1647040910032,123.1,80.879,80.835,5.683]
[1647040910433,126.14447957,80.879,80.835,5.683]
[1647040910634,3.04447957,80.878,80.835,5.683]
[1647040910835,129.283,80.877,80.835,5.683]
[1647040911034,129.283,80.877,80.781,48.777]
[1647040911234,123.1,80.869,80.79,18.5624]
[1647040911435,18.5619,80.87,80.791,24.3734]
[1647040911436,123.1,80.867,80.791,24.3734]
[1647040911638,123.1,80.865,80.791,24.3734]
[1647040911836,123.1,80.863,80.791,24.3734]
[1647040912059,123.1,80.861,80.791,24.3734]
[1647040912436,123.1,80.859,80.791,24.3734]
[1647040912640,123.1,80.857,80.791,23.8734]
[1647040913037,123.1,80.849,80.763,24.3734]
[1647040913235,14.89,80.85,80.763,24.3734]
[1647040913236,123.1,80.847,80.763,24.3734]
[1647040913442,123.1,80.845,80.763,24.3734]
[1647040913637,123.1,80.839,80.763,24.3734]
[1647040913838,129.288,80.839,80.763,24.3734]
[1647040914038,123.1,80.837,80.763,24.3734]
[1647040914240,123.1,80.835,80.763,24.3734]
[1647040914438,6.188,80.834,80.763,24.3734]
[1647040915240,123.1,80.829,80.763,24.3734]
[1647040915440,6.188,80.828,80.763,24.3734]
[1647040915641,6.188,80.829,80.763,24.3734]
[1647040915842,6.188,80.832,80.763,24.3734]
[1647040916241,18.5689,80.83,80.763,24.3734]
[1647040919349,123.1,80.828,80.763,24.3734]
[1647040919545,123.1,80.826,80.763,24.3734]
[1647040919745,6.72373437,80.824,80.763,24.3734]
[1647040919946,18.5712,80.82,80.763,24.3734]
[1647040921164,6.188,80.823,80.77,18.5671]
[1647040921364,6.72373437,80.824,80.77,18.5671]
[1647040923165,6.72373437,80.824,80.77,18.0671]
[1647040923967,6.72373437,80.824,80.763,24.3734]
[1647040928969,6.72373437,80.824,80.764,6.188]
[1647040929672,6.72373437,80.824,80.771,53.81147364]
[1647040929871,6.72373437,80.824,80.772,6.188]
[1647040930072,6.72373437,80.824,80.771,6.188]
[1647040930674,6.72373437,80.824,80.763,24.3734]
[1647040930675,6.72373437,80.824,80.764,6.188]
[1647040932176,6.72373437,80.824,80.77,18.5668]
[1647040932376,6.72373437,80.824,80.771,6.188]
[1647040935578,6.72373437,80.824,80.77,18.5668]
[1647040936476,6.72373437,80.824,80.771,6.188]
[1647040938179,6.72373437,80.824,80.764,6.188]
[1647040939882,18.5716,80.82,80.764,6.188]
[1647040941179,6.188,80.819,80.764,6.188]
[1647040946586,6.188,80.823,80.764,6.188]
[1647040947787,18.5714,80.82,80.764,6.188]
[1647040947988,6.188,80.819,80.764,6.188]
[1647040949688,6.72373437,80.824,80.764,6.188]
[1647040950491,6.72373437,80.824,80.765,123.8]
[1647040950695,6.72373437,80.824,80.772,50.94950779]
[1647040950891,1.67287899,80.85,80.773,123.8]
[1647040951095,1.67287899,80.85,80.773,174.20060624]
[1647040951491,1.67287899,80.85,80.775,123.8]
[1647040951692,1.67287899,80.855,80.78,18.562]
[1647040951893,35.66621459,80.854,80.781,123.8]
[1647040952089,35.66621459,80.854,80.781,152.74664041]
[1647040952492,35.66621459,80.854,80.783,123.8]
[1647040953194,35.66621459,80.854,80.8,18.5608]
[1647040953389,35.66621459,80.854,80.802,65.51718344]
[1647040953590,6.186,80.863,80.803,123.8]
[1647040953790,1.67287899,80.876,80.803,123.8]
[1647040953991,1.67287899,80.875,80.805,123.8]
[1647040954193,6.184,80.874,80.805,123.8]
[1647040954390,6.184,80.875,80.806,2.77653417]
[1647040954589,33.85715395,80.877,80.806,2.77653417]
[1647040954993,33.85715395,80.877,80.811,123.8]
[1647040955394,33.85715395,80.877,80.804,48.2128]
[1647040955793,33.85715395,80.877,80.805,123.8]
[1647040956193,33.85715395,80.877,80.821,50.51022372]
[1647040958393,33.85715395,80.877,80.81,18.5584]
[1647040959393,33.85715395,80.877,80.812,46.24526225]
[1647040959594,33.85715395,80.877,80.813,6.184]
[1647040959795,33.85715395,80.877,80.82,18.5561]
[1647040959995,33.85715395,80.877,80.821,6.184]
[1647040964299,18.5607,80.87,80.821,6.184]
[1647040964501,18.5607,80.87,80.804,48.2128]
[1647040964502,26.1907,80.87,80.804,48.2128]
[1647040964900,7.63,80.87,80.804,48.2128]
[1647040965104,32.40997824,80.87,80.805,6.185]
[1647040965301,32.40997824,80.87,80.806,56.7549374]
[1647040966101,32.40997824,80.87,80.81,18.5582]
[1647040966700,7.63,80.87,80.81,18.5582]